fUSD/lending_fUSD_20240712
["ID","MTS","AMOUNT","RATE_DAILY","PERIOD"]
[331798134,1720765925522,-560.55756726,0.00014236,2]
[331798135,1720765925532,-500.0,0.00014246,2]
[331798136,1720765925543,-500.0,0.00014246,2]
[331798137,1720765925554,-500.0,0.00014246,2]
[331798138,1720765925564,-500.0,0.00014246,2]
[331798139,1720765925575,-500.0,0.00014246,2]
[331798140,1720765925586,-500.0,0.00014246,2]
[331798141,1720765925596,-500.0,0.00014246,2]
[331798142,1720765925606,-600.13,0.00014246,2]
[331798143,1720765925616,-500.0,0.00014246,2]
[331798144,1720765925626,-533.46,0.00014246,2]
[331798145,1720765925636,-519.73184115,0.00014246,2]
[331798146,1720765925646,-500.0,0.00014246,2]
[331798147,1720765925656,-547.29,0.00014246,2]
[331798148,1720765925666,-527.94,0.00014246,2]
[331798149,1720765925676,-500.0,0.00014246,2]
[331798150,1720765925686,-500.0,0.00014246,2]
[331798151,1720765925697,-829.62,0.00014246,2]
[331798152,1720765925708,-678.42,0.00014246,2]
[331798153,1720765925719,-500.0,0.00014246,2]
[331798154,1720765925729,-500.0,0.00014246,2]
[331798155,1720765925739,-500.0,0.00014246,2]
[331798156,1720765925749,-1078.13,0.00014246,2]
[331798157,1720765925759,-599.97,0.00014246,2]
[331798158,1720765925769,-572.91,0.00014246,2]
[331798159,1720765925779,-500.0,0.00014246,2]
[331798160,1720765925953,-500.0,0.00014246,2]
[331798161,1720765925964,-500.0,0.00014246,2]
[331798162,1720765925974,-463.96755811,0.00014246,2]
[331798163,1720765925983,-541.87,0.00014246,2]
[331798164,1720765925993,-561.01,0.00014246,2]
[331798165,1720765926002,-500.0,0.00014246,2]
[331798166,1720765926012,-526.37,0.00014246,2]
[331798167,1720765926021,-500.0,0.00014246,2]
[331798168,1720765926030,-500.0,0.00014246,2]
[331798169,1720765926040,-658.35,0.00014246,2]
[331798170,1720765926049,-500.0,0.00014246,2]
[331798171,1720765926059,-597.81,0.00014246,2]
[331798172,1720765926069,-665.34,0.00014246,2]
[331798173,1720765926079,-879.54,0.00014246,2]
[331798174,1720765926088,-500.0,0.00014246,2]
[331798175,1720765926097,-1042.83,0.00014246,2]
[331798176,1720765926107,-551.83172957,0.00014246,2]
[331798177,1720765926116,-500.0,0.00014246,2]
[331798178,1720765926125,-500.0,0.00014246,2]
[331798179,1720765926135,-801.96,0.00014246,2]
[331798180,1720765926144,-676.83,0.00014246,2]
[331798181,1720765926153,-576.46,0.00014246,2]
[331798182,1720765926162,-679.71,0.00014246,2]
[331798183,1720765926172,-699.82,0.00014246,2]
[331798184,1720765926181,-638.24471034,0.00014246,2]
[331798185,1720765926190,-902.64,0.00014246,2]
[331798186,1720765926199,-500.0,0.00014246,2]
[331798187,1720765926210,-500.0,0.00014246,2]
[331798188,1720765926220,-969.66,0.00014246,2]
[331798189,1720765926230,-1386.9,0.00014246,2]
[331798190,1720765926239,-500.0,0.00014246,2]
[331798191,1720765926249,-500.0,0.00014246,2]
[331798192,1720765926258,-500.0,0.00014246,2]
[331798193,1720765926268,-832.86,0.00014246,2]
[331798194,1720765926277,-1142.56,0.00014246,2]
[331798195,1720765926286,-584.03,0.00014246,2]
[331798196,1720765926295,-678.02,0.00014246,2]
[331798197,1720765926306,-965.58,0.00014246,2]
[331798198,1720765926315,-980.86,0.00014246,2]
[331798199,1720765926325,-500.0,0.00014246,2]
[331798200,1720765926334,-500.0,0.00014246,2]
[331798201,1720765926344,-625.22,0.00014246,2]
[331798202,1720765926354,-500.0,0.00014246,2]
[331798203,1720765926363,-1043.71,0.00014246,2]
[331798204,1720765926372,-500.0,0.00014246,2]
[331798205,1720765926381,-1095.96,0.00014246,2]
[331798206,1720765926390,-663.07,0.00014246,2]
[331798207,1720765926399,-500.0,0.00014246,2]
[331798208,1720765926409,-1311.76,0.00014246,2]
[331798209,1720765926418,-500.0,0.00014246,2]
[331798210,1720765926427,-1064.74,0.00014246,2]
[331798211,1720765926436,-500.0,0.00014246,2]
[331798212,1720765926445,-500.0,0.00014246,2]
[331798213,1720765926454,-1453.03,0.00014246,2]
[331798214,1720765926466,-506.91,0.00014246,2]
[331798215,1720765926475,-625.46,0.00014246,2]
[331798216,1720765926486,-651.67,0.00014246,2]
[331798217,1720765926495,-1301.15,0.00014246,2]
[331798218,1720765926504,-500.0,0.00014246,2]
[331798219,1720765926517,-305.19,0.00014246,2]
[331798220,1720765926526,-500.0,0.00014246,2]
[331798221,1720765926536,-618.62,0.00014246,2]
[331798222,1720765926545,-500.0,0.00014246,2]
[331798223,1720765926555,-1182.83,0.00014246,2]
[331798224,1720765926565,-871.11,0.00014246,2]
[331798225,1720765926574,-500.0,0.00014246,2]
[331798226,1720765926584,-886.56,0.00014246,2]
[331798227,1720765926594,-500.0,0.00014246,2]
[331798228,1720765926604,-1085.4,0.00014246,2]
[331798229,1720765926613,-896.6,0.00014246,2]
[331798230,1720765926623,-830.96,0.00014246,2]
[331798231,1720765926633,-674.06,0.00014246,2]
[331798232,1720765926642,-1895.01,0.00014246,2]
[331798233,1720765926651,-1172.9,0.00014246,2]
[331798234,1720765926661,-1660.92,0.00014246,2]
[331798235,1720765926670,-644.5,0.00014246,2]
[331798236,1720765926679,-1467.31,0.00014246,2]
[331798237,1720765926688,-500.0,0.00014246,2]
[331798238,1720765926698,-981.49,0.00014246,2]
[331798239,1720765926707,-500.0,0.00014246,2]
[331798240,1720765926717,-1112.45,0.00014246,2]
[331798241,1720765926726,-721.53,0.00014246,2]
[331798242,1720765926735,-361.20805905,0.00014246,2]
[331798243,1720765926745,-500.0,0.00014246,2]
[331798244,1720765926755,-773.09,0.00014246,2]
[331798245,1720765926765,-750.22,0.00014246,2]
[331798246,1720765926775,-451.44768702,0.00014246,2]
[331798247,1720765926784,-582.81945906,0.00014246,2]
[331798248,1720765926793,-617.12,0.00014246,2]
[331798249,1720765926802,-1485.55,0.00014246,2]
[331798250,1720765926812,-645.73,0.00014246,2]
[331798251,1720765926821,-609.33,0.00014246,2]
[331798252,1720765926830,-1043.11,0.00014246,2]
[331798253,1720765926840,-577.94,0.00014246,2]
[331798254,1720765926850,-1001.09,0.00014246,2]
[331798255,1720765926859,-572.94,0.00014246,2]
[331798256,1720765926870,-826.26,0.00014246,2]
[331798257,1720765926880,-500.0,0.00014246,2]
[331798258,1720765926889,-863.68,0.00014246,2]
[331798259,1720765926898,-978.71,0.00014246,2]
[331798260,1720765926908,-927.14,0.00014246,2]
[331798261,1720765926917,-1033.49,0.00014246,2]
[331798262,1720765926927,-500.0,0.00014246,2]
[331798263,1720765926936,-500.0,0.00014246,2]
[331798264,1720765926945,-584.99,0.00014246,2]
[331798265,1720765926955,-1551.06,0.00014246,2]
[331798266,1720765926965,-924.22,0.00014246,2]
[331798267,1720765926974,-290.7953241,0.00014246,2]
[331798268,1720765926984,-936.64,0.00014246,2]
[331798269,1720765926993,-500.0,0.00014246,2]
[331798270,1720765927002,-500.0,0.00014246,2]
[331798271,1720765927012,-583.16,0.00014246,2]
[331798272,1720765927021,-1266.54,0.00014246,2]
[331798273,1720765927031,-1145.72,0.00014246,2]
[331798274,1720765927040,-500.0,0.00014246,2]
[331798275,1720765927051,-239.57,0.00014246,2]
[331798276,1720765927061,-1072.75,0.00014246,2]
[331798277,1720765927071,-628.89,0.00014246,2]
[331798278,1720765927080,-882.64,0.00014246,2]
[331798279,1720765927089,-908.15,0.00014246,2]
[331798280,1720765927098,-617.45,0.00014246,2]
[331798281,1720765927107,-500.0,0.00014246,2]
[331798282,1720765927117,-597.8,0.00014246,2]
[331798283,1720765927126,-500.0,0.00014246,2]
[331798284,1720765927135,-1413.12,0.00014246,2]
[331798285,1720765927144,-684.65,0.00014246,2]
[331798286,1720765927153,-1269.4,0.00014246,2]
[331798287,1720765927163,-1009.57,0.00014246,2]
[331798288,1720765927172,-820.34,0.00014246,2]
[331798289,1720765927181,-570.33,0.00014246,2]
[331798290,1720765927190,-751.75,0.00014246,2]
[331798291,1720765927199,-500.0,0.00014246,2]
[331798292,1720765927210,-500.0,0.00014246,2]
[331798293,1720765927220,-1287.67,0.00014246,2]
[331798294,1720765927230,-922.77,0.00014246,2]
[331798295,1720765927240,-500.0,0.00014246,2]
[331798296,1720765927250,-1345.39,0.00014246,2]
[331798297,1720765927260,-649.45,0.00014246,2]
[331798298,1720765927269,-536.18,0.00014246,2]
[331798299,1720765927279,-500.0,0.00014246,2]
[331798300,1720765927288,-895.96,0.00014246,2]
[331798301,1720765927297,-1632.41,0.00014246,2]
[331798302,1720765927307,-566.55,0.00014246,2]
[331798303,1720765927316,-729.38,0.00014246,2]
[331798304,1720765927327,-500.0,0.00014246,2]
[331798305,1720765927336,-500.0,0.00014246,2]
[331798306,1720765927346,-1661.47,0.00014246,2]
[331798307,1720765927356,-1622.68,0.00014246,2]
[331798308,1720765927366,-1461.03,0.00014246,2]
[331798309,1720765927376,-932.1,0.00014246,2]
[331798310,1720765927385,-600.18,0.00014246,2]
[331798311,1720765927394,-500.0,0.00014246,2]
[331798312,1720765927403,-652.76,0.00014246,2]
[331798313,1720765927413,-590.79,0.00014246,2]
[331798314,1720765927423,-649.76,0.00014246,2]
[331798315,1720765927433,-562.94,0.00014246,2]
[331798316,1720765927444,-500.0,0.00014246,2]
[331798317,1720765927455,-500.0,0.00014246,2]
[331798318,1720765927466,-511.55,0.00014246,2]
[331798319,1720765927477,-682.84,0.00014246,2]
[331798320,1720765927487,-500.0,0.00014246,2]
[331798321,1720765927496,-913.11,0.00014246,2]
[331798322,1720765927507,-557.92,0.00014246,2]
[331798323,1720765927517,-500.0,0.00014246,2]
[331798324,1720765927527,-500.0,0.00014246,2]
[331798325,1720765927536,-665.1,0.00014246,2]
[331798326,1720765927546,-500.0,0.00014246,2]
[331798327,1720765927557,-647.57,0.00014246,2]
[331798328,1720765927567,-655.14,0.00014246,2]
[331798329,1720765927576,-1070.59,0.00014246,2]
[331798330,1720765927587,-500.0,0.00014246,2]
[331798331,1720765927596,-500.0,0.00014246,2]
[331798332,1720765927606,-549.77,0.00014246,2]
[331798333,1720765927616,-955.34,0.00014246,2]
[331798334,1720765927627,-500.0,0.00014246,2]
[331798335,1720765927638,-500.0,0.00014246,2]
[331798336,1720765927647,-500.0,0.00014246,2]
[331798337,1720765927657,-572.55,0.00014246,2]
[331798338,1720765927667,-1087.88,0.00014246,2]
[331798339,1720765927677,-924.38,0.00014246,2]
[331798340,1720765927687,-500.0,0.00014246,2]
[331798341,1720765927696,-895.76,0.00014246,2]
[331798342,1720765927705,-877.72,0.00014246,2]
[331798343,1720765927715,-811.35,0.00014246,2]
[331798344,1720765927725,-701.46,0.00014246,2]
[331798345,1720765927737,-500.0,0.00014246,2]
[331798346,1720765927747,-943.64,0.00014246,2]
[331798347,1720765927757,-500.0,0.00014246,2]
[331798348,1720765927768,-535.3,0.00014246,2]
[331798349,1720765927778,-951.0,0.00014246,2]
[331798350,1720765927787,-533.99,0.00014246,2]
[331798351,1720765927796,-500.0,0.00014246,2]
[331798352,1720765927806,-500.0,0.00014246,2]
[331798353,1720765927815,-691.79,0.00014246,2]
[331798354,1720765927825,-749.0,0.00014246,2]
[331798355,1720765927836,-646.61,0.00014246,2]
[331798356,1720765927847,-1153.39,0.00014246,2]
[331798357,1720765927859,-828.98,0.00014246,2]
[331798358,1720765927870,-333.52,0.00014246,2]
[331798359,1720765927880,-500.0,0.00014246,2]
[331798360,1720765927889,-797.92,0.00014246,2]
[331798361,1720765927899,-678.2,0.00014246,2]
[331798362,1720765927909,-500.0,0.00014246,2]
[331798363,1720765927918,-742.09,0.00014246,2]
[331798364,1720765927928,-925.55,0.00014246,2]
[331798365,1720765927939,-718.26,0.00014246,2]
[331798366,1720765927948,-660.22,0.00014246,2]
[331798367,1720765927959,-685.66,0.00014246,2]
[331798368,1720765927969,-616.92,0.00014246,2]
[331798369,1720765927979,-626.69,0.00014246,2]
[331798370,1720765927988,-578.66,0.00014246,2]
[331798371,1720765927998,-1182.27,0.00014246,2]
[331798372,1720765928008,-751.88,0.00014246,2]
[331798373,1720765928017,-500.0,0.00014246,2]
[331798374,1720765928027,-788.87,0.00014246,2]
[331798375,1720765928036,-589.96,0.00014246,2]
[331798376,1720765928047,-1518.85,0.00014246,2]
[331798377,1720765928056,-500.0,0.00014246,2]
[331798378,1720765928066,-863.12,0.00014246,2]
[331798379,1720765928075,-500.0,0.00014246,2]
[331798380,1720765928085,-765.3,0.00014246,2]
[331798381,1720765928097,-1173.86,0.00014246,2]
[331798382,1720765928106,-500.0,0.00014246,2]
[331798383,1720765928117,-714.93,0.00014246,2]
[331798384,1720765928126,-500.0,0.00014246,2]
[331798385,1720765928136,-500.0,0.00014246,2]
[331798386,1720765928147,-889.91,0.00014246,2]
[331798387,1720765928156,-500.0,0.00014246,2]
[331798388,1720765928166,-797.27,0.00014246,2]
[331798389,1720765928175,-500.0,0.00014246,2]
[331798390,1720765928185,-508.63,0.00014246,2]
[331798391,1720765928195,-500.0,0.00014246,2]
[331798392,1720765928205,-1002.89,0.00014246,2]
[331798393,1720765928216,-512.8,0.00014246,2]
[331798394,1720765928226,-905.0,0.00014246,2]
[331798395,1720765928237,-500.0,0.00014246,2]
[331798396,1720765928247,-500.0,0.00014246,2]
[331798397,1720765928259,-500.0,0.00014246,2]
[331798398,1720765928268,-500.0,0.00014246,2]
[331798399,1720765928277,-504.61,0.00014246,2]
[331798400,1720765928287,-998.09,0.00014246,2]
[331798401,1720765928297,-500.0,0.00014246,2]
[331798402,1720765928307,-1181.8,0.00014246,2]
[331798403,1720765928316,-1692.88,0.00014246,2]
[331798404,1720765928325,-500.0,0.00014246,2]
[331798405,1720765928334,-500.0,0.00014246,2]
[331798406,1720765928345,-806.67,0.00014246,2]
[331798407,1720765928354,-1115.55,0.00014246,2]
[331798408,1720765928366,-1111.86,0.00014246,2]
[331798409,1720765928376,-500.0,0.00014246,2]
[331798410,1720765928385,-1152.37,0.00014246,2]
[331798411,1720765928394,-500.0,0.00014246,2]
[331798412,1720765928403,-500.0,0.00014246,2]
[331798413,1720765928412,-1099.21,0.00014246,2]
[331798414,1720765928421,-500.0,0.00014246,2]
[331798415,1720765928433,-500.0,0.00014246,2]
[331798416,1720765928443,-500.0,0.00014246,2]
[331798417,1720765928454,-500.0,0.00014246,2]
[331798418,1720765928464,-958.58,0.00014246,2]
[331798419,1720765928474,-500.0,0.00014246,2]
[331798420,1720765928483,-1435.54,0.00014246,2]
[331798421,1720765928492,-500.0,0.00014246,2]
[331798422,1720765928501,-500.0,0.00014246,2]
[331798423,1720765928515,-933.39,0.00014246,2]
[331798424,1720765928524,-885.22,0.00014246,2]
[331798425,1720765928533,-320.56944611,0.00014246,2]
[331798426,1720765928543,-525.55,0.00014246,2]
[331798427,1720765928553,-578.47,0.00014246,2]
[331798428,1720765928562,-585.1,0.00014246,2]
[331798429,1720765928571,-768.43,0.00014246,2]
[331798430,1720765928581,-500.0,0.00014246,2]
[331798431,1720765928591,-1131.03,0.00014246,2]
[331798432,1720765928600,-500.66,0.00014246,2]
[331798433,1720765928611,-1387.16,0.00014246,2]
[331798434,1720765928621,-769.71,0.00014246,2]
[331798435,1720765928630,-929.61,0.00014246,2]
[331798436,1720765928642,-500.0,0.00014246,2]
[331798437,1720765928652,-1195.55,0.00014246,2]
[331798438,1720765928664,-1164.92,0.00014246,2]
[331798439,1720765928674,-592.67,0.00014246,2]
[331798440,1720765928683,-832.05,0.00014246,2]
[331798441,1720765928692,-1157.39,0.00014246,2]
[331798442,1720765928703,-965.25,0.00014246,2]
[331798443,1720765928713,-1057.96,0.00014246,2]
[331798444,1720765928722,-500.0,0.00014246,2]
[331798445,1720765928731,-663.73,0.00014246,2]
[331798446,1720765928743,-500.0,0.00014246,2]
[331798447,1720765928753,-996.83,0.00014246,2]
[331798448,1720765928763,-778.42,0.00014246,2]
[331798449,1720765928932,-500.94,0.00014246,2]
[331798450,1720765928942,-500.0,0.00014246,2]
[331798451,1720765928952,-392.64755802,0.00014246,2]
[331798452,1720765928964,-1011.24,0.00014246,2]
[331798453,1720765928973,-500.0,0.00014246,2]
[331798454,1720765928983,-724.27,0.00014246,2]
[331798455,1720765928993,-500.0,0.00014246,2]
[331798456,1720765929003,-948.7,0.00014246,2]
[331798457,1720765929012,-500.0,0.00014246,2]
[331798458,1720765929021,-1338.17,0.00014246,2]
[331798459,1720765929030,-894.67,0.00014246,2]
[331798460,1720765929040,-500.0,0.00014246,2]
[331798461,1720765929049,-691.16,0.00014246,2]
[331798462,1720765929058,-706.91,0.00014246,2]
[331798463,1720765929068,-500.0,0.00014246,2]
[331798464,1720765929077,-500.0,0.00014246,2]
[331798465,1720765929086,-1648.59,0.00014246,2]
[331798466,1720765929096,-579.34,0.00014246,2]
[331798467,1720765929106,-534.75,0.00014246,2]
[331798468,1720765929116,-6673.84,0.00014246,2]
[331798469,1720765929126,-500.0,0.00014246,2]
[331798470,1720765929136,-791.66,0.00014246,2]
[331798471,1720765929147,-868.6,0.00014246,2]
[331798472,1720765929156,-503.87,0.00014246,2]
[331798473,1720765929167,-500.0,0.00014246,2]
[331798474,1720765929177,-500.0,0.00014246,2]
[331798475,1720765929187,-1463.05,0.00014246,2]
[331798476,1720765929196,-500.0,0.00014246,2]
[331798477,1720765929206,-1711.11,0.00014246,2]
[331798478,1720765929216,-500.0,0.00014246,2]
[331798479,1720765929225,-940.12,0.00014246,2]
[331798480,1720765929234,-500.0,0.00014246,2]
[331798481,1720765929243,-583.8,0.00014246,2]
[331798482,1720765929253,-500.0,0.00014246,2]
[331798483,1720765929262,-1103.87,0.00014246,2]
[331798484,1720765929272,-838.82,0.00014246,2]
[331798485,1720765929281,-500.0,0.00014246,2]
[331798486,1720765929291,-906.68,0.00014246,2]
[331798487,1720765929300,-774.99,0.00014246,2]
[331798488,1720765929313,-500.0,0.00014246,2]
[331798489,1720765929323,-1003.46,0.00014246,2]
[331798490,1720765929332,-776.49,0.00014246,2]
[331798491,1720765929342,-715.19,0.00014246,2]
[331798492,1720765929351,-1574.49,0.00014246,2]
[331798493,1720765929361,-2671.99,0.00014246,2]
[331798494,1720765929370,-500.0,0.00014246,2]
[331798495,1720765929379,-811.17,0.00014246,2]
[331798496,1720765929388,-1169.16,0.00014246,2]
[331798497,1720765929397,-804.64,0.00014246,2]
[331798498,1720765929406,-516.06,0.00014246,2]
[331798499,1720765929416,-500.0,0.00014246,2]
[331798500,1720765929427,-1567.42,0.00014246,2]
[331798501,1720765929439,-1123.97,0.00014246,2]
[331798502,1720765929448,-1159.17,0.00014246,2]
[331798503,1720765929460,-7796.51,0.00014246,2]
[331798504,1720765929469,-682.47,0.00014246,2]
[331798505,1720765929479,-884.1,0.00014246,2]
[331798506,1720765929488,-3427.86,0.00014246,2]
[331798507,1720765929497,-761.42,0.00014246,2]
[331798508,1720765929507,-500.0,0.00014246,2]
[331798509,1720765929520,-500.0,0.00014246,2]
[331798510,1720765929531,-500.0,0.00014246,2]
[331798511,1720765929542,-2349.61,0.00014246,2]
[331798512,1720765929553,-2824.19,0.00014246,2]
[331798513,1720765929564,-544.06,0.00014246,2]
[331798514,1720765929573,-1413.14,0.00014246,2]
[331798515,1720765929583,-500.0,0.00014246,2]
[331798516,1720765929592,-746.16,0.00014246,2]
[331798517,1720765929602,-1040.64,0.00014246,2]
[331798518,1720765929611,-568.05,0.00014246,2]
[331798519,1720765929620,-1225.06,0.00014246,2]
[331798520,1720765929630,-500.0,0.00014246,2]
[331798521,1720765929639,-502.01,0.00014246,2]
[331798522,1720765929648,-945.48,0.00014246,2]
[331798523,1720765929658,-1864.03,0.00014246,2]
[331798524,1720765929668,-500.0,0.00014246,2]
[331798525,1720765929677,-782.62,0.00014246,2]
[331798526,1720765929686,-3139.48,0.00014246,2]
[331798527,1720765929696,-967.92,0.00014246,2]
[331798528,1720765929705,-817.59,0.00014246,2]
[331798529,1720765929716,-672.02,0.00014246,2]
[331798530,1720765929725,-760.77,0.00014246,2]
[331798531,1720765929734,-500.0,0.00014246,2]
[331798532,1720765929743,-500.0,0.00014246,2]
[331798533,1720765929751,-1369.87,0.00014246,2]
[331798534,1720765929761,-503.52,0.00014246,2]
[331798535,1720765929770,-927.94,0.00014246,2]
[331798536,1720765929779,-510.11,0.00014246,2]
[331798537,1720765929788,-883.29,0.00014246,2]
[331798538,1720765929798,-500.0,0.00014246,2]
[331798539,1720765929807,-500.0,0.00014246,2]
[331798540,1720765929816,-703.12,0.00014246,2]
[331798541,1720765929826,-913.43,0.00014246,2]
[331798542,1720765929835,-500.0,0.00014246,2]
[331798543,1720765929845,-1249.82,0.00014246,2]
[331798544,1720765929854,-698.85,0.00014246,2]
[331798545,1720765929864,-513.61,0.00014246,2]
[331798546,1720765929874,-500.0,0.00014246,2]
[331798547,1720765929883,-500.0,0.00014246,2]
[331798548,1720765929892,-500.0,0.00014246,2]
[331798549,1720765929901,-3390.01,0.00014246,2]
[331798550,1720765929911,-522.91,0.00014246,2]
[331798551,1720765929920,-977.7,0.00014246,2]
[331798552,1720765929930,-641.99,0.00014246,2]
[331798553,1720765929939,-760.44,0.00014246,2]
[331798554,1720765929948,-853.13,0.00014246,2]
[331798555,1720765929957,-534.54,0.00014246,2]
[331798556,1720765929968,-500.0,0.00014246,2]
[331798557,1720765929978,-789.27,0.00014246,2]
[331798558,1720765929991,-158.92801915,0.00014274,2]
[331798559,1720765930000,-500.0,0.00014301,2]
[331798560,1720765930010,-500.0,0.00014301,2]
[331798561,1720765930019,-500.0,0.00014301,2]
[331798562,1720765930029,-500.0,0.00014301,2]
[331798563,1720765930038,-500.0,0.00014301,2]
[331798564,1720765930047,-500.0,0.00014301,2]
[331798565,1720765930057,-500.0,0.00014301,2]
[331798566,1720765930066,-600.13,0.00014301,2]
[331798567,1720765930076,-500.0,0.00014301,2]
[331798568,1720765930086,-533.46,0.00014301,2]
[331798569,1720765930095,-500.0,0.00014301,2]
[331798570,1720765930105,-547.29,0.00014301,2]
[331798571,1720765930116,-527.94,0.00014301,2]
[331798572,1720765930126,-500.0,0.00014301,2]
[331798573,1720765930137,-500.0,0.00014301,2]
[331798574,1720765930147,-829.62,0.00014301,2]
[331798575,1720765930157,-678.42,0.00014301,2]
[331798576,1720765930168,-500.0,0.00014301,2]
[331798577,1720765930178,-500.0,0.00014301,2]
[331798578,1720765930187,-500.0,0.00014301,2]
[331798579,1720765930196,-1078.13,0.00014301,2]
[331798580,1720765930206,-599.97,0.00014301,2]
[331798581,1720765930218,-572.91,0.00014301,2]
[331798582,1720765930227,-500.0,0.00014301,2]
[331798583,1720765930237,-500.0,0.00014301,2]
[331798584,1720765930247,-500.0,0.00014301,2]
[331798585,1720765930256,-541.87,0.00014301,2]
[331798586,1720765930265,-561.01,0.00014301,2]
[331798587,1720765930275,-500.0,0.00014301,2]
[331798588,1720765930284,-526.37,0.00014301,2]
[331798589,1720765930293,-500.0,0.00014301,2]
[331798590,1720765930302,-559.40496273,0.00014301,2]
[331798591,1720765930312,-658.35,0.00014301,2]
[331798592,1720765930321,-366.0357114,0.00014301,2]
[331798593,1720765930331,-597.81,0.00014301,2]
[331798594,1720765930340,-665.34,0.00014301,2]
[331798595,1720765930350,-879.54,0.00014301,2]
[331798596,1720765930359,-500.0,0.00014301,2]
[331798597,1720765930368,-1042.83,0.00014301,2]
[331798598,1720765930377,-500.0,0.00014301,2]
[331798599,1720765930386,-500.0,0.00014301,2]
[331798600,1720765930395,-801.96,0.00014301,2]
[331798601,1720765930404,-676.83,0.00014301,2]
[331798602,1720765930414,-576.46,0.00014301,2]
[331798603,1720765930423,-679.71,0.00014301,2]
[331798604,1720765930432,-699.82,0.00014301,2]
[331798605,1720765930441,-902.64,0.00014301,2]
[331798606,1720765930452,-500.0,0.00014301,2]
[331798607,1720765930463,-500.0,0.00014301,2]
[331798608,1720765930473,-969.66,0.00014301,2]
[331798609,1720765930483,-1386.9,0.00014301,2]
[331798610,1720765930492,-286.78841417,0.00014301,2]
[331798611,1720765930501,-500.0,0.00014301,2]
[331798612,1720765930514,-500.0,0.00014301,2]
[331798613,1720765930524,-832.86,0.00014301,2]
[331798614,1720765930534,-1142.56,0.00014301,2]
[331798615,1720765930543,-584.03,0.00014301,2]
[331798616,1720765930554,-678.02,0.00014301,2]
[331798617,1720765930564,-965.58,0.00014301,2]
[331798618,1720765930574,-980.86,0.00014301,2]
[331798619,1720765930585,-500.0,0.00014301,2]
[331798620,1720765930594,-500.0,0.00014301,2]
[331798621,1720765930605,-625.22,0.00014301,2]
[331798622,1720765930615,-500.0,0.00014301,2]
[331798623,1720765930624,-1043.71,0.00014301,2]
[331798624,1720765930635,-500.0,0.00014301,2]
[331798625,1720765930644,-1095.96,0.00014301,2]
[331798626,1720765930653,-663.07,0.00014301,2]
[331798627,1720765930663,-500.0,0.00014301,2]
[331798628,1720765930673,-1311.76,0.00014301,2]
[331798629,1720765930682,-500.0,0.00014301,2]
[331798630,1720765930692,-1064.74,0.00014301,2]
[331798631,1720765930702,-500.0,0.00014301,2]
[331798632,1720765930712,-500.0,0.00014301,2]
[331798633,1720765930722,-1453.03,0.00014301,2]